fUST/lending_fUST_20250615
["ID","MTS","AMOUNT","RATE_DAILY","PERIOD"]
[365824819,1749940241745,-460.0,0.00022739,4]
[365824820,1749940241754,-460.0,0.00022739,4]
[365824821,1749940241764,-460.0,0.00022739,4]
[365824822,1749940241773,-460.0,0.00022739,4]
[365824823,1749940241783,-460.0,0.00022739,4]
[365824824,1749940241792,-530.78,0.00022739,4]
[365824825,1749940241801,-460.0,0.00022739,4]
[365824826,1749940241811,-1151.53,0.00022739,4]
[365824827,1749940241820,-204.64870237,0.00022739,4]
[365824828,1749940241829,-1230.06,0.00022739,4]
[365824829,1749940241839,-1250.89,0.00022739,4]
[365824830,1749940241849,-460.0,0.00022739,4]
[365824831,1749940241858,-486.12,0.00022739,4]
[365824832,1749940241867,-3425.3,0.00022739,4]
[365824833,1749940241876,-460.0,0.00022739,4]
[365824834,1749940241885,-460.0,0.00022739,4]
[365824835,1749940241895,-460.0,0.00022739,4]
[365824837,1749940241905,-1486.44,0.00022739,4]
[365824839,1749940241914,-554.94,0.00022739,4]
[365824841,1749940241923,-460.0,0.00022739,4]
[365824842,1749940241932,-569.7,0.00022739,4]
[365824843,1749940241941,-460.0,0.00022739,4]
[365824844,1749940241951,-475.48,0.00022739,4]
[365824846,1749940241959,-951.16,0.00022739,4]
[365824848,1749940241970,-814.19,0.00022739,4]
[365824850,1749940241979,-370.44,0.00022739,4]
[365824852,1749940241988,-1064.68,0.00022739,4]
[365824854,1749940241998,-460.0,0.00022739,4]
[365824856,1749940242007,-460.0,0.00022739,4]
[365824858,1749940242017,-3239.66,0.00022739,4]
[365824860,1749940242026,-460.0,0.00022739,4]
[365824862,1749940242035,-460.0,0.00022739,4]
[365824864,1749940242045,-2638.52,0.00022739,4]
[365824866,1749940242055,-1131.67,0.00022739,4]
[365824868,1749940242064,-889.6,0.00022739,4]
[365824870,1749940242074,-460.0,0.00022739,4]
[365824872,1749940242083,-460.0,0.00022739,4]
[365824874,1749940242092,-153.31062181,0.00022739,4]
[365824877,1749940242112,-1112.04,0.00022739,4]
[365824879,1749940242122,-460.0,0.00022739,4]
[365824881,1749940242132,-757.22,0.00022739,4]
[365824883,1749940242142,-3409.97,0.00022739,4]
[365824885,1749940242152,-4285.18,0.00022739,4]
[365824887,1749940242162,-917.06,0.00022739,4]
[365824889,1749940242172,-360.0,0.00022739,4]
[365824891,1749940242181,-910.17,0.00022739,4]
[365824893,1749940242191,-460.0,0.00022739,4]
[365824896,1749940242203,-585.96,0.00022739,4]
[365824898,1749940242213,-3599.81,0.00022739,4]
[365824900,1749940242223,-340.0,0.00022739,4]
[365824902,1749940242233,-523.41,0.00022739,4]
[365824904,1749940242243,-599.29,0.00022739,4]
[365824905,1749940242253,-460.0,0.00022739,4]
[365824908,1749940242263,-4054.47,0.00022739,4]
[365824910,1749940242273,-1598.91,0.00022739,4]
[365824912,1749940242282,-600.12,0.00022739,4]
[365824913,1749940242291,-889.57,0.00022739,4]
[365824916,1749940242301,-580.0,0.00022739,4]
[365824918,1749940242311,-1544.86,0.00022739,4]
[365824919,1749940242321,-460.0,0.00022739,2]
[365824921,1749940242331,-460.0,0.00022739,4]
[365824923,1749940242340,-460.0,0.00022739,4]
[365824925,1749940242350,-460.0,0.00022739,4]
[365824927,1749940242360,-2823.63,0.00022739,4]
[365824929,1749940242370,-745.7,0.00022739,4]
[365824931,1749940242380,-2032.65,0.00022739,4]
[365824933,1749940242390,-460.0,0.00022739,4]
[365824936,1749940242399,-500.0,0.00022767,4]
[365824938,1749940242409,-151.0,0.00022767,4]
[365824940,1749940242419,-151.0,0.00022767,4]
[365824941,1749940242428,-198.0,0.00022767,4]
[365824943,1749940242438,-151.0,0.00022767,4]
[365824945,1749940242447,-151.0,0.00022767,4]
[365824947,1749940242457,-151.0,0.00022767,4]
[365824950,1749940242467,-500.0,0.00022773,2]
[365824952,1749940242477,-500.0,0.00022773,2]
[365824954,1749940242486,-428.57648092,0.00022793,2]
[365824956,1749940242496,-500.0,0.00022794,4]
[365824957,1749940242506,-151.0,0.00022794,4]
[365824959,1749940242516,-198.0,0.00022822,4]
[365824962,1749940242526,-951.72615265,0.00022831,8]
[365824964,1749940242536,-159.41069738,0.00022849,2]
[365824966,1749940242546,-835.41710878,0.00022886,2]
[365824967,1749940242555,-229.82479369,0.00022886,2]
[365824969,1749940242571,-213.28201367,0.00022886,2]
[365824972,1749940242580,-500.0,0.000229,2]
[365824973,1749940242590,-951.72615265,0.00022934,8]
[365824975,1749940242600,-25395.97503115,0.00022998,2]
[365824978,1749940242611,-5963.37362922,0.00023,2]
[365824979,1749940242621,-826.81317095,0.00023,2]
[365824981,1749940242631,-6020.85196694,0.00023,3]
[365824984,1749940242642,-15651.68263261,0.00023,2]
[365824985,1749940242651,-40681.90762674,0.00023,20]
[365824987,1749940242661,-245.31676408,0.00023013,4]
[365824989,1749940242671,-869.2,0.00023013,4]
[365824991,1749940242680,-607.26,0.00023013,4]
[365824994,1749940242690,-170.0,0.00023013,4]
[365824995,1749940242700,-460.0,0.00023013,4]
[365824997,1749940242710,-460.0,0.00023013,4]
[365825000,1749940242719,-460.0,0.00023013,4]
[365825002,1749940242729,-460.0,0.00023013,4]
[365825004,1749940242739,-320.0,0.00023013,4]
[365825006,1749940242749,-1218.26,0.00023013,4]
[365825008,1749940242758,-232.58128461,0.00023013,4]
[365825009,1749940242768,-319.70908746,0.00023013,4]
[365825011,1749940242778,-569.55,0.00023013,4]
[365825013,1749940242789,-460.0,0.00023013,4]
[365825015,1749940242798,-460.0,0.00023013,4]
[365825017,1749940242808,-460.0,0.00023013,4]
[365825019,1749940242818,-460.0,0.00023013,4]
[365825021,1749940242827,-460.0,0.00023013,4]
[365825023,1749940242837,-530.78,0.00023013,4]
[365825026,1749940242847,-460.0,0.00023013,4]
[365825028,1749940242859,-1151.53,0.00023013,4]
[365825030,1749940242869,-1230.06,0.00023013,4]
[365825032,1749940242879,-1250.89,0.00023013,4]
[365825034,1749940242888,-460.0,0.00023013,4]
[365825036,1749940242897,-486.12,0.00023013,4]
[365825038,1749940242907,-3425.3,0.00023013,4]
[365825040,1749940242917,-460.0,0.00023013,4]
[365825041,1749940242926,-460.0,0.00023013,4]
[365825043,1749940242936,-460.0,0.00023013,4]
[365825045,1749940242946,-1486.44,0.00023013,4]
[365825047,1749940242956,-554.94,0.00023013,4]
[365825050,1749940242967,-460.0,0.00023013,4]
[365825052,1749940242977,-569.7,0.00023013,4]
[365825053,1749940242986,-460.0,0.00023013,4]
[365825056,1749940242996,-475.48,0.00023013,4]
[365825057,1749940243006,-951.16,0.00023013,4]
[365825060,1749940243015,-814.19,0.00023013,4]
[365825062,1749940243025,-1064.68,0.00023013,4]
[365825063,1749940243034,-460.0,0.00023013,4]
[365825065,1749940243043,-460.0,0.00023013,4]
[365825067,1749940243053,-3239.66,0.00023013,4]
[365825069,1749940243062,-460.0,0.00023013,4]
[365825071,1749940243073,-460.0,0.00023013,4]
[365825073,1749940243083,-2638.52,0.00023013,4]
[365825075,1749940243093,-1131.67,0.00023013,4]
[365825077,1749940243103,-889.6,0.00023013,4]
[365825079,1749940243112,-460.0,0.00023013,4]
[365825085,1749940243123,-230.0,0.00023013,4]
[365825087,1749940243133,-1112.04,0.00023013,4]
[365825088,1749940243143,-460.0,0.00023013,4]
[365825091,1749940243153,-757.22,0.00023013,4]
[365825092,1749940243163,-3409.97,0.00023013,4]
[365825094,1749940243174,-4285.18,0.00023013,4]
[365825097,1749940243185,-917.06,0.00023013,4]
[365825099,1749940243195,-910.17,0.00023013,4]
[365825101,1749940243206,-460.0,0.00023013,4]
[365825103,1749940243221,-585.96,0.00023013,4]
[365825105,1749940243232,-3599.81,0.00023013,4]
[365825106,1749940243243,-523.41,0.00023013,4]
[365825110,1749940243254,-460.0,0.00023013,4]
[365825114,1749940243265,-599.29,0.00023013,4]
[365825115,1749940243277,-4054.47,0.00023013,4]
[365825117,1749940243288,-1598.91,0.00023013,4]
[365825120,1749940243298,-600.12,0.00023013,4]
[365825122,1749940243309,-889.57,0.00023013,4]
[365825123,1749940243320,-1544.86,0.00023013,4]
[365825126,1749940243330,-460.0,0.00023013,2]
[365825128,1749940243340,-460.0,0.00023013,4]
[365825130,1749940243350,-460.0,0.00023013,4]
[365825132,1749940243360,-460.0,0.00023013,4]
[365825134,1749940243370,-2823.63,0.00023013,4]
[365825136,1749940243380,-745.7,0.00023013,4]
[365825138,1749940243390,-2032.65,0.00023013,4]
[365825140,1749940243399,-460.0,0.00023013,4]
[365825142,1749940243409,-951.72615265,0.00023038,8]
[365825144,1749940243418,-600.0,0.0002304,2]
[365825146,1749940243428,-399.78354313,0.00023045,2]
[365825148,1749940243438,-365.2762568,0.00023068,2]
[365825150,1749940243447,-365.2762568,0.00023068,2]
[365825152,1749940243458,-365.2762568,0.00023068,2]
[365825154,1749940243469,-364.9269501,0.00023068,2]
[365825156,1749940243479,-500.0,0.00023068,2]
[365825158,1749940243488,-428.57648092,0.00023098,2]
[365825160,1749940243498,-176.85789988,0.00023137,2]
[365825162,1749940243507,-951.72615265,0.00023141,8]
[365825163,1749940243516,-159.41069738,0.00023151,2]
[365825165,1749940243526,-24112.60626682,0.000232,7]
[365825167,1749940243536,-12533.30537164,0.000232,7]
[365825169,1749940243545,-845.10789306,0.000232,7]
[365825171,1749940243555,-951.72615265,0.00023245,8]
[365825173,1749940243566,-151.0,0.0002328,7]
[365825175,1749940243576,-151.0,0.0002328,7]
[365825177,1749940243586,-1061.94,0.0002328,7]
[365825179,1749940243595,-1061.94,0.0002328,7]
[365825181,1749940243606,-600.0,0.0002328,2]
[365825183,1749940243616,-5000.0,0.0002328,2]
[365825185,1749940243626,-869.2,0.00023287,4]
[365825187,1749940243635,-607.26,0.00023287,4]
[365825189,1749940243646,-460.0,0.00023287,4]
[365825191,1749940243655,-460.0,0.00023287,4]
[365825193,1749940243664,-283.97937949,0.00023287,4]
[365825195,1749940243674,-460.0,0.00023287,4]
[365825197,1749940243683,-1218.26,0.00023287,4]
[365825198,1749940243692,-569.55,0.00023287,4]
[365825200,1749940243702,-460.0,0.00023287,4]
[365825202,1749940243711,-273.89553763,0.00023287,4]
[365825204,1749940243724,-460.0,0.00023287,4]
[365825206,1749940243734,-460.0,0.00023287,4]
[365825208,1749940243743,-460.0,0.00023287,4]
[365825210,1749940243753,-530.78,0.00023287,4]
[365825212,1749940243763,-460.0,0.00023287,4]
[365825214,1749940243772,-1151.53,0.00023287,4]
[365825216,1749940243782,-1230.06,0.00023287,4]
[365825218,1749940243791,-1250.89,0.00023287,4]
[365825220,1749940243801,-460.0,0.00023287,4]
[365825222,1749940243810,-486.12,0.00023287,4]
[365825224,1749940243820,-3425.3,0.00023287,4]
[365825226,1749940243830,-460.0,0.00023287,4]
[365825228,1749940243839,-460.0,0.00023287,4]
[365825230,1749940243848,-460.0,0.00023287,4]
[365825233,1749940243859,-1486.44,0.00023287,4]
[365825236,1749940243869,-554.94,0.00023287,4]
[365825239,1749940243879,-460.0,0.00023287,4]
[365825242,1749940243888,-569.7,0.00023287,4]
[365825244,1749940243897,-460.0,0.00023287,4]
[365825247,1749940243907,-475.48,0.00023287,4]
[365825249,1749940243916,-951.16,0.00023287,4]
[365825252,1749940243926,-814.19,0.00023287,4]
[365825253,1749940243935,-1064.68,0.00023287,4]
[365825255,1749940243944,-460.0,0.00023287,4]
[365825257,1749940243956,-460.0,0.00023287,4]
[365825259,1749940243968,-3239.66,0.00023287,4]
[365825262,1749940243978,-460.0,0.00023287,4]
[365825264,1749940243988,-460.0,0.00023287,4]
[365825265,1749940243998,-2638.52,0.00023287,4]
[365825267,1749940244007,-1131.67,0.00023287,4]
[365825269,1749940244017,-889.6,0.00023287,4]
[365825271,1749940244027,-460.0,0.00023287,4]
[365825273,1749940244036,-1112.04,0.00023287,4]
[365825276,1749940244046,-460.0,0.00023287,4]
[365825278,1749940244055,-757.22,0.00023287,4]
[365825279,1749940244065,-3409.97,0.00023287,4]
[365825281,1749940244075,-4285.18,0.00023287,4]
[365825284,1749940244087,-917.06,0.00023287,4]
[365825286,1749940244097,-910.17,0.00023287,4]
[365825288,1749940244107,-585.96,0.00023287,4]
[365825290,1749940244116,-460.0,0.00023287,4]
[365825306,1749940244263,-3599.81,0.00023287,4]
[365825308,1749940244272,-523.41,0.00023287,4]
[365825310,1749940244282,-333.93835613,0.00023287,4]
[365825312,1749940244292,-599.29,0.00023287,4]
[365825313,1749940244302,-4054.47,0.00023287,4]
[365825315,1749940244311,-1598.91,0.00023287,4]
[365825317,1749940244321,-600.12,0.00023287,4]
[365825319,1749940244331,-889.57,0.00023287,4]
[365825321,1749940244340,-1544.86,0.00023287,4]
[365825323,1749940244349,-460.0,0.00023287,2]
[365825325,1749940244359,-460.0,0.00023287,4]
[365825328,1749940244369,-460.0,0.00023287,4]
[365825330,1749940244379,-460.0,0.00023287,4]
[365825332,1749940244388,-2823.63,0.00023287,4]
[365825334,1749940244398,-745.7,0.00023287,4]
[365825335,1749940244407,-2032.65,0.00023287,4]
[365825337,1749940244416,-1530.3962487,0.00023304,2]
[365825339,1749940244426,-316.9201482,0.00023321,2]
[365825342,1749940244436,-153.0,0.00023342,2]
[365825344,1749940244445,-333.6565149,0.00023342,2]
[365825345,1749940244455,-500.0,0.00023346,2]
[365825348,1749940244467,-951.72615265,0.00023348,9]
[365825350,1749940244477,-119719.01283049,0.0002335,2]
[365825352,1749940244486,-500.0,0.00023373,2]
[365825353,1749940244496,-500.0,0.00023373,2]
[365825355,1749940244505,-600.0,0.00023373,2]
[365825358,1749940244515,-500.0,0.00023373,2]
[365825360,1749940244525,-500.0,0.00023373,2]
[365825362,1749940244535,-500.0,0.00023373,2]
[365825364,1749940244544,-500.0,0.00023373,2]
[365825366,1749940244553,-500.81351494,0.00023373,2]
[365825367,1749940244566,-500.0,0.00023373,2]
[365825368,1749940244576,-500.0,0.00023373,2]
[365825369,1749940244586,-500.0,0.00023373,2]
[365825370,1749940244596,-508.50078384,0.00023373,2]
[365825371,1749940244606,-500.0,0.00023373,2]
[365825372,1749940244616,-421.21542315,0.00023373,2]
[365825373,1749940244626,-500.0,0.00023373,2]
[365825374,1749940244636,-500.0,0.00023373,2]
[365825375,1749940244645,-500.0,0.00023373,2]
[365825376,1749940244655,-420.33161541,0.00023373,2]
[365825377,1749940244664,-428.57648092,0.00023439,2]
[365825378,1749940244674,-951.72615265,0.00023452,9]
[365825379,1749940244684,-1423.306195,0.0002352,3]
[365825380,1749940244693,-603.05998381,0.0002352,2]
[365825381,1749940244702,-160.0,0.00023533,2]
[365825382,1749940244712,-951.72615265,0.00023555,9]
[365825383,1749940244722,-12150.41,0.0002356,5]
[365825384,1749940244731,-869.2,0.00023561,4]
[365825385,1749940244740,-607.26,0.00023561,4]
[365825386,1749940244750,-460.0,0.00023561,4]
[365825387,1749940244759,-460.0,0.00023561,4]
[365825388,1749940244769,-460.0,0.00023561,4]
[365825389,1749940244779,-1218.26,0.00023561,4]
[365825390,1749940244788,-569.55,0.00023561,4]
[365825391,1749940244799,-460.0,0.00023561,4]
[365825392,1749940244808,-460.0,0.00023561,4]
[365825393,1749940244818,-460.0,0.00023561,4]
[365825394,1749940244828,-460.0,0.00023561,4]
[365825396,1749940244837,-530.78,0.00023561,4]
[365825398,1749940244846,-460.0,0.00023561,4]
[365825400,1749940244856,-1151.53,0.00023561,4]
[365825402,1749940244866,-1230.06,0.00023561,4]
[365825403,1749940244875,-1250.89,0.00023561,4]
[365825404,1749940244885,-460.0,0.00023561,4]
[365825406,1749940244895,-486.12,0.00023561,4]
[365825407,1749940244904,-3425.3,0.00023561,4]
[365825408,1749940244914,-460.0,0.00023561,4]
[365825409,1749940244923,-460.0,0.00023561,4]
[365825411,1749940244932,-460.0,0.00023561,4]
[365825413,1749940244942,-1486.44,0.00023561,4]
[365825415,1749940244951,-554.94,0.00023561,4]
[365825417,1749940244960,-460.0,0.00023561,4]
[365825418,1749940244971,-569.7,0.00023561,4]
[365825420,1749940244980,-460.0,0.00023561,4]
[365825421,1749940244990,-475.48,0.00023561,4]
[365825422,1749940244999,-951.16,0.00023561,4]
[365825423,1749940245008,-814.19,0.00023561,4]
[365825424,1749940245018,-1064.68,0.00023561,4]
[365825425,1749940245027,-460.0,0.00023561,4]
[365825426,1749940245037,-460.0,0.00023561,4]
[365825427,1749940245047,-3239.66,0.00023561,4]
[365825428,1749940245057,-460.0,0.00023561,4]
[365825429,1749940245068,-460.0,0.00023561,4]
[365825430,1749940245079,-2638.52,0.00023561,4]
[365825431,1749940245088,-1131.67,0.00023561,4]
[365825432,1749940245098,-889.6,0.00023561,4]
[365825433,1749940245107,-460.0,0.00023561,4]
[365825434,1749940245117,-1112.04,0.00023561,4]
[365825435,1749940245126,-460.0,0.00023561,4]
[365825436,1749940245136,-757.22,0.00023561,4]
[365825437,1749940245145,-3409.97,0.00023561,4]
[365825438,1749940245155,-4285.18,0.00023561,4]
[365825439,1749940245164,-917.06,0.00023561,4]
[365825440,1749940245175,-910.17,0.00023561,4]
[365825441,1749940245186,-585.96,0.00023561,4]
[365825442,1749940245195,-460.0,0.00023561,4]
[365825443,1749940245206,-3599.81,0.00023561,4]
[365825444,1749940245216,-523.41,0.00023561,4]
[365825445,1749940245226,-599.29,0.00023561,4]
[365825446,1749940245236,-4054.47,0.00023561,4]
[365825447,1749940245246,-1598.91,0.00023561,4]
[365825448,1749940245256,-600.12,0.00023561,4]
[365825449,1749940245266,-889.57,0.00023561,4]
[365825450,1749940245276,-1544.86,0.00023561,4]
[365825451,1749940245285,-460.0,0.00023561,2]
[365825452,1749940245295,-460.0,0.00023561,4]
[365825453,1749940245306,-460.0,0.00023561,4]
[365825454,1749940245316,-460.0,0.00023561,4]
[365825455,1749940245326,-2823.63,0.00023561,4]
[365825456,1749940245336,-745.7,0.00023561,4]
[365825457,1749940245346,-2032.65,0.00023561,4]
[365825458,1749940245356,-500.0,0.00023573,2]
[365825459,1749940245365,-507.66297015,0.00023573,2]
[365825460,1749940245375,-500.0,0.00023573,2]
[365825461,1749940245385,-500.0,0.00023573,2]
[365825462,1749940245394,-176.85789988,0.00023578,2]
[365825463,1749940245404,-90958.783763,0.000236,2]
[365825464,1749940245413,-620.67332547,0.00023655,30]
[365825465,1749940245423,-951.72615265,0.00023659,9]
[365825466,1749940245432,-15657.01815668,0.00023687,2]
[365825467,1749940245442,-800.0,0.00023705,2]
[365825468,1749940245451,-151.0,0.00023716,7]
[365825469,1749940245461,-151.0,0.00023716,7]
[365825470,1749940245473,-1061.94,0.00023716,7]
[365825471,1749940245482,-1061.94,0.00023716,7]
[365825472,1749940245492,-213.28201367,0.00023716,7]
[365825473,1749940245501,-326.46134904,0.00023728,2]
[365825474,1749940245511,-1000.0,0.00023753,7]
[365825475,1749940245520,-1000.0,0.00023753,7]
[365825476,1749940245529,-1000.0,0.00023753,7]
[365825477,1749940245540,-1000.0,0.00023753,7]
[365825478,1749940245549,-1000.0,0.00023753,7]
[365825479,1749940245559,-1000.0,0.00023753,7]
[365825480,1749940245573,-1000.0,0.00023753,7]
[365825481,1749940245582,-1000.0,0.00023753,7]
[365825482,1749940245591,-845.10789306,0.00023753,7]
[365825483,1749940245602,-951.72615265,0.00023762,9]
[365825484,1749940245612,-800.0,0.00023768,2]
[365825485,1749940245622,-1173.94331158,0.00023788,2]
[365825486,1749940245631,-420.0,0.00023799,2]
[365825487,1749940245640,-2791.51,0.000238,2]
[365825488,1749940245650,-151.0,0.000238,10]
[365825489,1749940245660,-12168.00742868,0.000238,2]
[365825490,1749940245670,-35987.10543398,0.000238,3]
[365825491,1749940245679,-12533.30537164,0.000238,3]
[365825492,1749940245689,-845.10789306,0.000238,3]
[365825493,1749940245698,-424.40141186,0.000238,3]
[365825494,1749940245708,-428.57648093,0.00023808,2]
[365825495,1749940245717,-420.0,0.00023816,2]
[365825496,1749940245726,-800.0,0.00023821,2]
[365825497,1749940245736,-5000.0,0.00023828,2]
[365825498,1749940245745,-319.545366,0.00023835,7]
[365825499,1749940245755,-319.545366,0.00023835,7]
[365825500,1749940245764,-869.2,0.00023835,4]
[365825501,1749940245774,-607.26,0.00023835,4]
[365825502,1749940245784,-460.0,0.00023835,4]
[365825503,1749940245794,-460.0,0.00023835,4]
[365825504,1749940245803,-460.0,0.00023835,4]
[365825505,1749940245812,-1218.26,0.00023835,4]
[365825506,1749940245822,-569.55,0.00023835,4]
[365825507,1749940245831,-460.0,0.00023835,4]
[365825508,1749940245840,-460.0,0.00023835,4]
[365825509,1749940245849,-460.0,0.00023835,4]
[365825510,1749940245860,-460.0,0.00023835,4]
[365825511,1749940245869,-530.78,0.00023835,4]
[365825512,1749940245879,-460.0,0.00023835,4]
[365825513,1749940245888,-1151.53,0.00023835,4]
[365825514,1749940245898,-1230.06,0.00023835,4]
[365825515,1749940245907,-1250.89,0.00023835,4]
[365825516,1749940245916,-460.0,0.00023835,4]
[365825517,1749940245925,-486.12,0.00023835,4]
[365825518,1749940245934,-3425.3,0.00023835,4]
[365825519,1749940245943,-460.0,0.00023835,4]
[365825520,1749940245953,-460.0,0.00023835,4]
[365825521,1749940245962,-460.0,0.00023835,4]
[365825522,1749940245971,-1486.44,0.00023835,4]
[365825523,1749940245981,-554.94,0.00023835,4]
[365825524,1749940245991,-460.0,0.00023835,4]
[365825525,1749940246001,-569.7,0.00023835,4]
[365825526,1749940246010,-460.0,0.00023835,4]
[365825527,1749940246019,-475.48,0.00023835,4]
[365825528,1749940246029,-951.16,0.00023835,4]
[365825529,1749940246038,-814.19,0.00023835,4]
[365825530,1749940246047,-1064.68,0.00023835,4]
[365825531,1749940246056,-460.0,0.00023835,4]
[365825532,1749940246066,-460.0,0.00023835,4]
[365825533,1749940246076,-3239.66,0.00023835,4]
[365825534,1749940246085,-460.0,0.00023835,4]
[365825535,1749940246095,-460.0,0.00023835,4]
[365825536,1749940246104,-2638.52,0.00023835,4]
[365825537,1749940246114,-1131.67,0.00023835,4]
[365825538,1749940246124,-889.6,0.00023835,4]
[365825540,1749940246134,-460.0,0.00023835,4]
[365825541,1749940246143,-1112.04,0.00023835,4]
[365825543,1749940246152,-460.0,0.00023835,4]
[365825544,1749940246162,-757.22,0.00023835,4]
[365825546,1749940246173,-3409.97,0.00023835,4]
[365825547,1749940246182,-4285.18,0.00023835,4]
[365825548,1749940246192,-917.06,0.00023835,4]
[365825549,1749940246201,-910.17,0.00023835,4]
[365825550,1749940246211,-585.96,0.00023835,4]
[365825551,1749940246222,-170.65,0.00023835,4]
[365825552,1749940246231,-3599.81,0.00023835,4]
[365825553,1749940246241,-523.41,0.00023835,4]
[365825554,1749940246251,-599.29,0.00023835,4]
[365825555,1749940246260,-800.0,0.00023835,2]
[365825556,1749940246269,-4054.47,0.00023835,4]
[365825557,1749940246279,-1598.91,0.00023835,4]
[365825558,1749940246289,-600.12,0.00023835,4]
[365825559,1749940246298,-889.57,0.00023835,4]
[365825560,1749940246307,-1544.86,0.00023835,4]
[365825561,1749940246317,-460.0,0.00023835,2]
[365825562,1749940246326,-460.0,0.00023835,4]
[365825563,1749940246336,-460.0,0.00023835,4]
[365825564,1749940246346,-350.36,0.00023835,4]
[365825565,1749940246357,-2823.63,0.00023835,4]
[365825566,1749940246369,-745.7,0.00023835,4]
[365825567,1749940246379,-2032.65,0.00023835,4]
[365825568,1749940246389,-964.0,0.00023838,2]
[365825569,1749940246399,-800.0,0.00023859,2]
[365825570,1749940246408,-951.72615265,0.00023866,10]
[365825571,1749940246418,-306.0,0.0002389,2]
[365825572,1749940246428,-730.5525136,0.0002389,2]
[365825573,1749940246437,-156.0,0.000239,2]
[365825574,1749940246448,-168.16966624,0.000239,2]
[365825575,1749940246457,-5738.07650511,0.000239,2]
[365825576,1749940246467,-150.0,0.000239,2]
[365825577,1749940246477,-168.0,0.00023913,2]
[365825578,1749940246487,-1000.0,0.00023921,2]
[365825579,1749940246496,-1200.0,0.00023921,2]
[365825580,1749940246506,-1000.0,0.00023921,2]
[365825581,1749940246515,-1000.0,0.00023921,2]
[365825582,1749940246525,-392.67113613,0.00023921,2]
[365825583,1749940246534,-1000.0,0.00023921,2]
[365825584,1749940246544,-500.0,0.00023921,2]
[365825586,1749940246554,-951.72615265,0.00023969,10]
[365825587,1749940246567,-150.0,0.00023973,2]
[365825588,1749940246577,-124329.44668253,0.0002398,2]
[365825589,1749940246597,-10636.04426079,0.0002398,2]
[365825590,1749940246607,-6247.74955513,0.00024,2]
[365825591,1749940246617,-27449.56497868,0.00024,2]
[365825592,1749940246626,-52374.16918414,0.00024,2]
[365825593,1749940246639,-700.05857372,0.00024,2]
[365825594,1749940246715,-2221.4450456,0.00021275,2]
[365825595,1749940246725,-460.0,0.00021917,4]
[365825596,1749940246735,-460.0,0.00022191,4]
[365825597,1749940246745,-460.0,0.00022465,4]
[365825600,1749940246860,-460.0,0.00022739,4]
[365825601,1749940246869,-460.0,0.00023013,4]
[365825603,1749940246879,-460.0,0.00023287,4]
[365825605,1749940246888,-2919.96727474,0.00023526,2]
[365825614,1749940247011,-380.0,0.00021917,4]
[365825615,1749940247020,-76.27,0.00023287,4]
[365825616,1749940247032,-383.73,0.00023287,4]
[365825617,1749940247041,-275.5607214,0.00023526,2]
[365825618,1749940247053,-9337.7773755,0.00023526,2]
[365825619,1749940247063,-160.0,0.00023526,2]
[365825620,1749940247072,-460.0,0.00023561,4]
[365825621,1749940247082,-460.0,0.00023561,4]